bitfinex/quotes_ETHUSD_20241216
["timestamp","ask_amount","ask_price","bid_price","bid_amount"]
[1734323433739,2.52902,3954.1,3952.9,2.01845481]
[1734323433903,0.8017,3953.9,3952.9,5.01845481]
[1734323434534,0.8017,3953.9,3952.9,7.54823481]
[1734323434773,0.8017,3953.9,3953.1,0.12785483]
[1734323439973,0.8017,3953.9,3953.1,3.12785483]
[1734323443497,0.8017,3953.9,3953.1,0.12785483]
[1734323443803,3.33085,3953.9,3953.1,0.12785483]
[1734323444007,1.134785,3953.9,3953.1,0.12785483]
[1734323444174,0.8266,3953.8,3953.1,0.12785483]
[1734323445386,0.8266,3953.8,3953.1,0.90645483]
[1734323445727,0.8266,3953.8,3953.4,2.52946]
[1734323445932,0.8266,3953.8,3953.1,0.90645483]
[1734323446073,2.52858,3954.8,3953.5,2.52935]
[1734323446074,0.7795,3954.7,3953.5,2.52935]
[1734323446400,0.7795,3954.7,3953.6,2.52933]
[1734323447011,0.7795,3954.7,3953.2,0.80059523]
[1734323447012,0.7795,3954.7,3953.8,2.5292]
[1734323447218,0.55,3954.6,3953.8,2.5292]
[1734323447523,0.55,3954.6,3953.9,3.0]
[1734323447688,0.7795,3954.7,3954.1,5.52901]
[1734323447894,0.7795,3954.7,3953.7,0.7974]
[1734323448202,0.7795,3954.7,3954.1,2.52898]
[1734323450555,0.7795,3954.7,3953.7,0.92211568]
[1734323450556,0.7795,3954.7,3954.2,2.52894]
[1734323451027,0.7795,3954.7,3953.7,3.92211568]
[1734323451209,0.7795,3954.7,3954.3,2.52887]
[1734323453024,0.7795,3954.7,3953.8,2.92142157]
[1734323453228,0.7795,3954.7,3953.8,0.39221157]
[1734323453427,0.7795,3954.7,3953.8,3.39221157]
[1734323453930,0.7795,3954.7,3954.2,2.52894]
[1734323454139,0.7795,3954.7,3954.3,0.252894]
[1734323456943,0.7795,3954.7,3954.3,3.252894]
[1734323457933,0.7795,3954.7,3954.3,5.781774]
[1734323459024,0.7795,3954.7,3954.3,0.252894]
[1734323459204,0.7795,3954.7,3954.1,3.0]
[1734323461365,0.7795,3954.7,3953.9,1.05455084]
[1734323461567,0.7795,3954.7,3954.2,3.0]
[1734323462562,0.7795,3954.7,3953.9,1.05455084]
[1734323462863,0.7795,3954.7,3954.0,5.16506832]
[1734323463021,0.7795,3954.7,3954.1,0.86602733]
[1734323463217,0.7795,3954.7,3953.9,3.0]
[1734323463519,0.7795,3954.7,3954.0,2.1655043]
[1734323463730,0.7795,3954.7,3954.1,3.0]
[1734323464131,0.7795,3954.7,3953.8,4.44676241]
[1734323464314,0.7795,3954.7,3953.9,5.16541428]
[1734323464508,0.7795,3954.7,3954.0,2.16541428]
[1734323464750,0.7795,3954.7,3954.0,5.16541428]
[1734323464944,0.7795,3954.7,3954.1,0.86616571]
[1734323465173,0.7795,3954.7,3954.1,3.86616571]
[1734323465350,0.7795,3954.7,3954.1,3.0]
[1734323465730,0.7795,3954.7,3954.0,3.0]
[1734323466015,0.7795,3954.7,3954.1,0.86619309]
[1734323466833,0.7795,3954.7,3953.8,1.44676241]
[1734323467043,0.7795,3954.7,3953.9,5.16557007]
[1734323467217,0.7795,3954.7,3954.0,2.16557007]
[1734323467414,0.7795,3954.7,3953.9,3.0]
[1734323467649,0.7795,3954.7,3954.0,2.16552935]
[1734323467963,0.7795,3954.7,3953.9,3.0]
[1734323468133,0.7795,3954.7,3954.0,2.16554395]
[1734323468324,0.7795,3954.7,3954.1,0.86646279]
[1734323468638,0.7795,3954.7,3954.1,3.0]
[1734323470126,0.7795,3954.7,3953.9,1.44299218]
[1734323470330,0.7542,3955.4,3954.5,3.0]
[1734323470744,0.7542,3955.4,3954.6,0.86597205]
[1734323470948,0.7542,3955.4,3954.8,2.52854]
[1734323472088,0.7542,3955.4,3954.5,4.78854792]
[1734323472089,0.7542,3955.4,3954.6,3.0]
[1734323472385,3.50701907,3955.7,3954.6,3.0]
[1734323472386,0.769,3955.2,3954.6,3.0]
[1734323472589,0.769,3955.2,3954.4,1.05455084]
[1734323472747,0.769,3955.2,3954.5,2.16336416]
[1734323473086,0.769,3955.2,3954.6,0.86532174]
[1734323473386,0.769,3955.2,3954.9,2.52849]
[1734323473989,0.75985272,3955.2,3954.9,2.52849]
[1734323474161,0.75985272,3955.2,3955.0,2.52844]
[1734323474703,0.55,3956.0,3955.1,3.0]
[1734323475654,1.06131434,3957.1,3956.1,3.0]
[1734323475871,4.11898151,3957.3,3956.1,3.0]
[1734323475872,0.26439177,3957.0,3956.1,3.0]
[1734323476207,1.92509301,3957.6,3955.7,3.0]
[1734323476378,0.49333225,3957.3,3956.5,2.52746]
[1734323476966,0.8162,3957.2,3956.5,2.52746]
[1734323479276,0.8162,3957.2,3955.9,0.12867336]
[1734323479528,0.8162,3957.2,3956.3,2.52761]
[1734323479806,0.8162,3957.2,3956.0,0.64725234]
[1734323480007,0.8162,3957.2,3956.1,1.65282822]
[1734323480209,0.8162,3957.2,3956.2,3.0]
[1734323480506,0.8162,3957.2,3956.3,3.0]
[1734323480685,0.8162,3957.2,3956.5,3.0]
[1734323481871,0.8162,3957.2,3956.4,0.37921]
[1734323482077,0.8162,3957.2,3956.5,2.52748]
[1734323482299,0.8162,3957.2,3956.1,0.7921]
[1734323482300,0.7716,3957.5,3956.1,0.7921]
[1734323482508,0.7716,3957.5,3956.8,3.0]
[1734323483649,0.7716,3957.5,3956.1,0.7921]
[1734323483650,0.7716,3957.5,3956.6,2.52741]
[1734323483801,0.7716,3957.5,3956.7,3.252741]
[1734323484197,0.7716,3957.5,3956.7,0.252741]
[1734323484396,0.7963,3957.9,3957.1,2.52705]
[1734323484700,0.7963,3957.9,3957.3,2.52695]
[1734323484906,0.7963,3957.9,3956.8,0.791]
[1734323485104,0.7963,3957.9,3957.4,2.5269]
[1734323485303,0.7963,3957.9,3957.5,2.52684]
[1734323486231,21.28722,3958.0,3957.6,3.0]
[1734323486527,21.28722,3958.0,3957.7,2.5267]
[1734323486691,21.28722,3958.0,3957.5,0.7652]
[1734323486886,21.28722,3958.0,3957.7,2.5267]
[1734323487387,21.28722,3958.0,3957.8,3.0]
[1734323487893,21.28722,3958.0,3957.6,3.37652]
[1734323488705,21.28722,3958.0,3957.6,0.37652]
[1734323488902,21.28722,3958.0,3957.4,2.52689]
[1734323489102,21.28722,3958.0,3957.5,3.0]
[1734323489844,21.28722,3958.0,3956.8,2.07821857]
[1734323489845,2.52691,3957.4,3956.1,2.52771]
[1734323490020,0.7652,3957.5,3956.0,0.8324]
[1734323490021,3.07698,3957.3,3956.0,0.8324]
[1734323490599,0.50875062,3957.7,3955.4,2.07821857]
[1734323490600,0.8121,3956.9,3955.4,2.07821857]
[1734323490798,0.8121,3956.9,3955.8,2.52793]
[1734323491211,0.8121,3956.9,3955.6,0.8238]
[1734323491413,0.8121,3956.9,3955.8,2.52792]
[1734323491621,0.8121,3956.9,3955.9,3.0]
[1734323491908,0.8121,3956.9,3956.0,3.552792]
[1734323492121,0.8121,3956.9,3956.0,0.552792]
[1734323492330,0.8121,3956.9,3955.8,2.52789]
[1734323492634,0.8121,3956.9,3955.9,3.0]
[1734323492816,0.8121,3956.9,3955.9,5.52784]
[1734323493919,0.8121,3956.9,3955.9,3.0]
[1734323494128,0.8121,3956.9,3955.9,3.39508866]
[1734323494417,0.8121,3956.9,3955.9,5.92294866]
[1734323495847,3.07731,3956.8,3955.7,0.12708665]
[1734323496015,3.07731,3956.8,3955.2,0.7804]
[1734323496016,0.807,3956.6,3955.2,0.7804]
[1734323496211,0.807,3956.6,3955.7,2.52798]
[1734323496412,0.807,3956.6,3955.2,0.7804]
[1734323496413,0.807,3956.6,3955.8,2.52789]
[1734323496624,0.807,3956.6,3955.3,2.52825]
[1734323496625,0.807,3956.6,3955.9,2.780639]
[1734323496823,0.807,3956.6,3955.9,2.52785]
[1734323497869,0.807,3956.6,3955.8,3.0]
[1734323498148,0.807,3956.6,3955.5,3.12713084]
[1734323498453,0.807,3956.6,3955.9,3.0]
[1734323499267,0.807,3956.6,3955.9,3.50314231]
[1734323500078,0.807,3956.6,3955.9,0.50314231]
[1734323500217,0.807,3956.6,3955.7,3.0]
[1734323500423,0.807,3956.6,3955.5,0.12713084]
[1734323502205,0.807,3956.2,3954.8,0.7804]
[1734323502406,0.807,3956.2,3955.2,3.0]
[1734323502730,0.807,3956.2,3955.2,3.552837]
[1734323502935,0.807,3956.2,3954.9,3.0]
[1734323503078,0.7837,3956.0,3954.9,5.5285]
[1734323503441,0.7837,3956.0,3955.0,2.52841]
[1734323504394,0.7837,3956.0,3955.1,2.52836]
[1734323504653,0.7837,3956.0,3955.2,3.0]
[1734323505136,0.7837,3956.0,3955.1,0.330876]
[1734323505500,0.7837,3956.0,3955.1,0.45730366]
[1734323505709,0.7837,3956.0,3955.1,3.45730366]
[1734323505887,0.7837,3956.0,3955.1,5.98567366]
[1734323506087,0.7837,3956.0,3955.2,0.59856737]
[1734323508028,0.7837,3956.0,3955.2,2.52831]
[1734323508803,0.75615009,3956.0,3955.2,2.52831]
[1734323509293,0.75615009,3956.0,3955.3,2.52821]
[1734323510347,0.75615009,3956.0,3955.4,3.0]
[1734323511850,0.75615009,3956.0,3955.1,0.12642766]
[1734323512047,0.75615009,3956.0,3955.2,2.52831]
[1734323512241,0.75615009,3956.0,3955.3,3.0]
[1734323515352,0.75615009,3956.0,3955.2,2.52831]
[1734323517057,0.55,3955.9,3954.5,0.8181]
[1734323517252,0.55,3955.9,3954.3,4.05455084]
[1734323517253,0.55,3955.6,3954.6,2.52863]
[1734323517559,0.55,3955.6,3954.4,2.5288]
[1734323517560,0.7837,3955.5,3954.4,2.5288]
[1734323518161,0.7837,3955.5,3954.4,2.79462676]
[1734323518363,0.7837,3955.5,3954.6,2.65303052]
[1734323519074,0.7837,3955.5,3954.4,0.26582676]
[1734323519238,0.7837,3955.5,3954.4,3.26582676]
[1734323519657,0.55,3955.4,3954.4,3.26582676]
[1734323519832,0.7837,3955.3,3954.4,3.0]
[1734323520430,0.7837,3955.3,3954.2,0.1294676]
[1734323520772,0.7837,3955.1,3954.2,3.0]
[1734323521076,0.7837,3955.1,3954.1,2.65714287]
[1734323522147,0.7837,3955.1,3954.1,0.12813287]
[1734323522344,1.169905,3955.1,3954.1,0.12813287]
[1734323522554,2.5286,3954.8,3953.9,2.01845481]
[1734323522760,0.8259,3954.7,3953.9,2.01845481]
[1734323522966,0.8259,3954.7,3953.6,3.0]
[1734323523334,0.8259,3954.4,3953.2,2.52956]
[1734323523740,2.52895,3954.2,3952.9,2.52973]
[1734323524082,0.8259,3953.9,3952.8,2.9244133]
[1734323524371,0.8259,3953.7,3952.9,2.07821857]
[1734323524695,0.8259,3953.7,3953.4,2.52944]
[1734323525235,0.8259,3953.7,3953.3,3.0]
[1734323525856,0.8259,3953.7,3952.9,2.52972]
[1734323526060,0.8259,3953.7,3952.7,3.12391273]
[1734323526061,0.8259,3953.7,3953.0,0.56536327]
[1734323526373,0.8259,3953.7,3952.8,2.52984]
[1734323527655,0.8259,3953.7,3952.7,0.12391273]
[1734323528891,0.7524,3954.3,3953.7,2.52926]
[1734323529218,0.7524,3954.3,3953.8,0.252926]
[1734323529510,0.7524,3954.6,3954.4,2.52882]
[1734323529654,0.7524,3954.6,3954.5,2.52876]
[1734323529858,0.7524,3954.9,3954.5,2.52876]
[1734323530099,0.7524,3954.9,3954.6,2.52863]
[1734323531017,0.7524,3954.9,3954.6,2.52868]
[1734323531857,0.7524,3954.9,3954.5,0.252876]
[1734323532057,0.7524,3954.9,3954.4,2.52882]
[1734323532292,0.7524,3954.9,3954.0,2.52902]
[1734323532457,0.7524,3954.9,3954.5,2.52876]
[1734323533054,0.7524,3954.9,3954.6,2.52868]
[1734323533261,0.7524,3954.9,3953.8,2.07821857]
[1734323533262,0.7524,3954.9,3954.7,2.52863]
[1734323534577,0.7524,3954.9,3954.2,2.52894]
[1734323534768,0.7524,3954.9,3954.5,2.52876]
[1734323535670,0.8138,3955.9,3954.2,3.0]
[1734323535871,0.8138,3955.9,3954.2,2.52895]
[1734323536085,0.8138,3955.5,3953.9,6.0844601]
[1734323536481,0.8138,3955.5,3954.4,2.52878]
[1734323536871,0.55,3955.4,3954.5,2.52871]
[1734323537504,0.55,3955.4,3954.6,2.52865]
[1734323537682,0.7861,3955.0,3953.2,0.7643]
[1734323537986,0.55,3954.7,3953.8,3.0]
[1734323538186,0.55,3954.7,3953.8,2.52918]
[1734323538385,0.55,3954.7,3953.9,3.0]
[1734323538604,0.7861,3954.8,3954.1,2.52901]
[1734323538806,0.7861,3954.8,3954.2,2.52895]
[1734323540700,0.7861,3954.8,3954.0,2.52908]
[1734323541109,0.7861,3954.8,3954.1,2.52898]
[1734323541273,0.7861,3954.8,3954.1,2.8371698]
[1734323543309,0.7861,3954.8,3954.1,0.3081898]
[1734323543511,0.55,3955.5,3954.0,3.8133]
[1734323543804,0.55,3955.5,3954.7,2.52863]
[1734323544179,0.55,3955.5,3954.8,2.52856]
[1734323549279,0.51758604,3955.8,3954.1,3.0]
[1734323549280,0.8183,3955.2,3954.1,3.0]
[1734323549482,0.55,3954.9,3953.7,0.89876881]
[1734323549680,0.55,3954.7,3953.7,4.80866721]
[1734323549979,0.55,3954.7,3953.7,2.65281881]
[1734323550212,0.55,3954.7,3953.8,0.86241188]
[1734323550907,0.8183,3954.6,3953.8,0.86241188]
[1734323551103,0.55,3954.5,3953.8,0.86241188]
[1734323551292,0.55,3954.5,3953.7,3.0]
[1734323551499,0.55,3954.5,3953.8,0.86209724]
[1734323552618,0.8183,3954.4,3953.6,2.52933]
[1734323552820,0.55,3954.3,3953.4,1.04224952]
[1734323553023,0.8183,3954.2,3953.1,5.59034433]
[1734323553225,3.07904,3954.1,3953.2,0.86255031]
[1734323553399,0.55,3953.9,3952.8,3.57204952]
[1734323553603,0.7882,3953.8,3952.9,2.15668395]
[1734323553787,0.7882,3953.8,3953.0,0.86267358]
[1734323553991,0.7882,3953.8,3952.9,2.52977]
[1734323554188,0.7882,3953.8,3953.0,0.86260594]
[1734323554537,0.7882,3953.8,3953.1,0.33923759]
[1734323555090,0.7882,3953.8,3952.7,1.04224952]
[1734323555315,0.7882,3953.8,3952.9,2.52978]
[1734323555619,0.7882,3953.8,3953.0,3.86280385]
[1734323555830,0.7882,3953.8,3953.0,3.0]
[1734323556397,0.7882,3953.8,3953.0,2.52971]
[1734323556589,0.7882,3953.8,3953.1,0.252971]
[1734323557611,0.7882,3953.8,3953.3,2.52951]
[1734323557828,0.8113,3954.7,3953.4,3.0]
[1734323558010,0.8113,3954.7,3953.1,6.12046809]
[1734323558344,0.8113,3954.7,3954.3,2.52882]
[1734323558516,0.7732,3955.2,3954.2,0.7767]
[1734323558693,0.7732,3955.2,3954.3,0.37767]
[1734323559737,0.7732,3955.2,3954.0,2.52908]
[1734323559912,0.55,3955.1,3954.1,3.39207515]
[1734323560116,0.55,3955.1,3954.2,3.0]
[1734323560925,0.55,3955.1,3954.2,2.52895]
[1734323561321,0.55,3955.1,3954.3,3.0]
[1734323561493,0.55,3955.1,3954.4,0.552895]
[1734323562820,0.7652,3955.0,3954.4,0.552895]
[1734323562992,0.7652,3955.0,3953.9,6.30579]
[1734323562993,0.7652,3955.0,3953.9,7.34803952]
[1734323563193,0.7652,3955.0,3954.0,3.0]
[1734323563393,0.7652,3955.0,3954.1,5.15978445]
[1734323563728,0.7652,3955.0,3954.2,0.86391378]
[1734323563958,0.7652,3955.0,3954.3,0.38639138]
[1734323564105,0.7652,3955.0,3954.0,3.0]
[1734323564424,0.55,3954.9,3954.1,2.15984658]
[1734323564628,0.55,3954.9,3954.2,0.86393863]
[1734323564834,0.55,3954.9,3954.0,3.0]
[1734323565050,0.55,3954.9,3954.1,2.15931956]
[1734323565355,0.55,3954.9,3954.2,1.73679373]
[1734323565554,0.55,3954.9,3954.2,0.87306591]
[1734323569147,0.55,3954.9,3953.9,1.04224952]
[1734323569350,0.7884,3954.6,3953.5,3.57160952]
[1734323569526,0.7884,3954.6,3953.6,2.15932558]
[1734323569728,0.7904,3954.5,3953.3,1.04224952]
[1734323569933,0.55,3954.2,3953.3,2.8436414]
[1734323570155,0.7904,3954.1,3953.4,0.86397773]
[1734323570343,0.7904,3954.1,3953.5,0.86416011]
[1734323570753,0.7904,3954.1,3953.4,2.52945]
[1734323570944,0.7904,3954.1,3953.5,3.86416073]
[1734323571262,0.7904,3954.1,3953.5,1.01380121]
[1734323572548,0.7904,3954.1,3953.3,3.68369707]
[1734323572866,0.7904,3954.1,3953.4,0.86469451]
[1734323574862,0.7904,3954.1,3953.5,1.29730079]
[1734323575067,0.7904,3954.1,3953.3,4.72594659]
[1734323575369,0.7904,3954.1,3953.4,5.16229033]
[1734323575567,0.7904,3954.1,3953.5,2.16229033]
[1734323575868,0.7939,3953.9,3953.1,1.16587936]
[1734323576070,0.7939,3953.9,3953.2,2.1623161]
[1734323576361,0.7939,3953.9,3953.3,2.1623161]
[1734323576563,0.7939,3953.9,3953.1,1.16587936]
[1734323576766,0.7939,3953.9,3953.2,5.16232845]
[1734323576943,0.7939,3953.9,3953.3,0.86493138]
[1734323577304,0.7939,3953.9,3953.2,3.0]
[1734323577434,0.7939,3953.9,3953.3,2.16205173]
[1734323577636,0.7939,3953.9,3953.4,2.16193876]
[1734323577831,0.7939,3953.9,3953.2,4.04224952]
[1734323577832,0.7939,3953.9,3953.5,5.31174759]
[1734323578169,0.55,3954.3,3953.6,0.86457071]
[1734323578758,0.55,3954.3,3953.5,0.62041883]
[1734323579841,0.7629,3954.4,3953.7,2.52925]
[1734323580750,0.7629,3954.4,3953.9,2.52912]
[1734323581647,0.7629,3954.4,3953.6,3.02658884]
[1734323582324,0.7629,3954.4,3953.7,2.1597314]
[1734323582460,0.7629,3954.4,3953.8,0.8639193]
[1734323582669,0.7629,3954.4,3953.9,0.54034377]
[1734323584181,0.7629,3954.4,3953.9,3.06948377]
[1734323584896,0.7629,3954.4,3954.0,2.52908]
[1734323586988,0.7629,3954.4,3953.6,4.53951836]
[1734323586989,0.55,3954.3,3953.6,1.53951836]
[1734323587265,0.55,3954.3,3953.7,0.86343108]
[1734323587490,0.8086,3954.2,3953.3,3.12829943]
[1734323587693,0.8086,3954.1,3953.4,2.15912883]
[1734323587900,0.8086,3954.1,3953.3,0.12829943]
[1734323588086,0.8086,3954.1,3953.4,2.49223371]
[1734323588397,0.8086,3954.1,3953.4,0.33296778]
[1734323588804,0.8086,3954.1,3953.2,1.04224952]
[1734323588965,0.8086,3954.1,3953.3,0.86368506]
[1734323589176,0.55,3954.3,3952.7,2.83769905]
[1734323589177,0.8086,3953.8,3953.0,1.04224952]
[1734323589474,0.8086,3953.8,3953.1,0.86377838]
[1734323589699,0.8086,3953.8,3952.8,1.16746501]
[1734323590025,2.52929,3953.7,3952.9,2.15936113]
[1734323590327,2.52929,3953.7,3952.8,0.12521549]
[1734323590632,0.7652,3953.6,3952.8,0.12521549]
[1734323590928,0.7652,3953.6,3952.8,0.54196199]
[1734323592395,1.26282636,3953.6,3952.8,0.54196199]
[1734323599628,3.29454,3953.6,3952.8,0.54196199]
[1734323602527,3.29454,3953.6,3952.8,0.4167465]
[1734323603835,0.7652,3953.6,3952.8,0.4167465]
[1734323604036,0.7652,3953.6,3952.9,0.34167465]
[1734323607249,0.55,3953.5,3952.9,0.34167465]
[1734323614377,0.55,3953.5,3953.0,0.86352044]
[1734323615566,0.55,3953.5,3952.8,4.16929059]
[1734323615771,0.55,3953.5,3952.9,5.15907891]
[1734323616116,0.55,3953.3,3952.7,1.04224952]
[1734323616406,0.55,3953.3,3952.8,3.0]
[1734323616566,0.55,3953.3,3952.9,0.86371813]
[1734323617141,0.55,3953.3,3952.8,3.0]
[1734323617276,0.55,3953.3,3952.9,2.16050481]
[1734323617473,0.55,3953.3,3952.7,1.04224952]
[1734323617829,0.55,3953.3,3952.8,3.0]
[1734323618117,0.55,3953.3,3952.9,2.16087585]
[1734323622401,0.55,3953.3,3953.0,0.86451059]
[1734323622637,0.55,3953.3,3952.7,1.17169869]
[1734323622810,0.55,3953.3,3952.8,5.1604793]
[1734323623012,0.55,3953.1,3952.5,1.04224952]
[1734323623429,0.55,3953.1,3952.6,2.16039082]
[1734323623615,0.55,3953.1,3952.7,0.86415633]
[1734323623818,0.55,3953.1,3952.5,1.04224952]
[1734323624044,0.55,3953.1,3952.6,2.16041325]
[1734323624237,0.55,3953.1,3952.7,0.8641653]
[1734323624434,0.55,3953.1,3952.4,4.04224952]
[1734323624435,0.55,3953.1,3952.5,1.04224952]
[1734323624730,0.55,3953.1,3952.5,3.20332482]
[1734323626355,0.55,3953.1,3952.5,2.1610753]
[1734323626546,0.55,3953.1,3952.6,2.1610753]
[1734323626726,0.55,3953.1,3952.7,0.86443012]
[1734323626925,0.55,3953.1,3952.4,5.26635051]
[1734323626926,0.55,3953.1,3952.4,4.04224952]
[1734323627114,0.55,3953.1,3952.5,5.1615752]
[1734323627448,0.55,3953.1,3952.3,1.04224952]
[1734323627621,0.55,3953.1,3952.3,3.20451767]
[1734323627823,0.55,3953.1,3952.4,3.0]
[1734323628029,0.55,3952.9,3952.5,0.86490726]
[1734323628442,0.55,3952.9,3952.4,3.0]
[1734323628642,2.64741067,3954.4,3952.4,3.0]
[1734323628643,0.49906447,3953.4,3952.5,2.16245648]
[1734323628954,0.7682,3953.8,3952.5,2.16245648]
[1734323628955,0.7682,3953.8,3953.2,2.52957]
[1734323629156,0.7682,3953.8,3953.3,5.1616029]
[1734323629357,0.7959,3954.1,3953.7,2.52927]
[1734323629519,0.7959,3954.1,3953.4,6.97296971]
[1734323629520,0.7959,3954.1,3953.8,5.16157093]
[1734323629852,0.7959,3954.1,3953.6,3.0]
[1734323630063,0.7959,3954.1,3953.7,5.16105245]
[1734323630364,0.7959,3954.1,3953.8,0.86444767]
[1734323630536,0.7959,3954.1,3953.6,4.04224952]
[1734323630857,0.7959,3954.1,3953.7,2.16114337]
[1734323631063,0.55,3954.0,3953.8,0.86445735]
[1734323631364,0.55,3954.0,3953.6,5.01550363]
[1734323631567,0.55,3954.0,3953.7,2.16114852]
[1734323638261,0.55,3954.0,3953.5,1.04224952]
[1734323638440,0.55,3954.0,3953.6,3.0]
[1734323638646,0.55,3954.0,3953.7,0.86499741]
[1734323638950,0.55,3954.0,3953.5,1.04224952]
[1734323639161,0.55,3954.0,3953.5,3.20436993]
[1734323639362,0.55,3954.0,3953.6,3.0]
[1734323639573,0.55,3954.0,3953.7,2.16212041]
[1734323639769,0.55,3954.0,3953.5,4.04224952]
[1734323639968,0.55,3954.0,3953.6,5.16201058]
[1734323640144,0.55,3954.0,3953.7,2.16201058]
[1734323640338,0.55,3954.0,3953.8,0.86477809]
[1734323640541,0.55,3954.0,3953.6,3.0]
[1734323640785,0.55,3954.0,3953.7,2.16250332]
[1734323641083,0.55,3954.0,3953.5,1.04224952]
[1734323641391,0.55,3954.0,3953.6,3.0]
[1734323641559,0.55,3954.0,3953.7,0.86509955]
[1734323641755,0.55,3954.0,3953.5,1.04224952]
[1734323642088,0.55,3954.0,3953.5,3.20494284]
[1734323642296,0.55,3954.0,3953.6,3.0]
[1734323642445,0.55,3954.0,3953.7,2.16269332]
[1734323643283,0.55,3954.0,3953.8,0.86523917]
[1734323643470,0.55,3954.0,3953.6,3.0]
[1734323643638,0.55,3954.0,3953.7,2.1630415]
[1734323645781,0.25,3956.0,3954.0,2.52907]
[1734323645782,0.8258,3954.7,3954.0,2.52907]
[1734323647293,0.55,3954.6,3954.1,0.8660428]
[1734323647611,0.55,3954.6,3954.0,2.52907]
[1734323648010,0.55,3954.6,3954.1,0.86602821]
[1734323648373,0.55,3954.6,3954.0,2.52907]
[1734323649001,1.11092982,3955.0,3954.1,3.43867195]
[1734323649002,0.13155638,3955.0,3954.1,3.43867195]
[1734323649190,0.97937344,3955.8,3954.4,1.04224952]
[1734323649389,0.8017,3955.9,3955.0,2.52844]
[1734323649682,0.8017,3955.9,3954.9,0.8241]
[1734323650014,0.8017,3955.9,3955.1,2.52837]
[1734323651322,0.8017,3955.9,3954.9,1.01073495]
[1734323651482,0.8017,3955.9,3955.3,3.0]
[1734323652617,0.55,3955.8,3955.3,3.0]
[1734323654907,0.55,3956.1,3955.4,0.7664]
[1734323655214,0.55,3956.3,3955.6,3.0]
[1734323655389,0.55,3956.3,3955.7,3.0]
[1734323658622,0.55,3956.3,3955.8,2.5279]
[1734323660784,0.55,3956.3,3955.8,0.25279]
[1734323660993,0.64289096,3956.8,3955.9,3.7878]
[1734323660994,0.55,3956.6,3955.9,3.7878]
[1734323661222,0.55,3956.6,3956.1,2.52772]
[1734323663488,0.55,3956.6,3955.9,0.7878]
[1734323663821,0.7858,3956.7,3955.5,3.7686]
[1734323663822,0.55,3956.7,3955.5,3.7686]
[1734323664000,0.14672969,3956.5,3955.5,6.29671]
[1734323664187,0.55,3956.4,3955.5,0.7686]
[1734323664633,0.55,3956.4,3955.7,2.52794]
[1734323664786,0.55,3956.5,3955.8,3.0]
[1734323665923,0.55,3956.5,3955.6,3.0]
[1734323666123,0.55,3956.5,3955.6,5.52805]
[1734323666695,0.55,3956.3,3955.6,5.52805]
[1734323667903,0.55,3956.3,3955.0,1.10792878]
[1734323667904,0.7819,3956.2,3954.6,3.3616]
[1734323668220,0.55,3955.9,3954.6,4.81227344]
[1734323668426,0.55,3955.9,3954.7,0.73410034]
[1734323668740,0.55,3955.9,3955.1,3.0]
[1734323669638,0.55,3955.9,3954.8,3.12945801]
[1734323669639,0.55,3955.7,3954.8,3.12945801]
[1734323669936,0.55,3955.3,3954.5,2.52875]
[1734323670306,0.55,3955.3,3954.2,2.8256642]
[1734323670722,0.7819,3955.2,3954.2,0.2967642]
[1734323670929,0.55,3955.1,3954.1,3.36191]
[1734323672307,0.55,3955.1,3954.4,3.0]
[1734323672727,0.55,3955.1,3954.2,3.0]
[1734323675059,0.55,3955.1,3954.3,3.0]
[1734323678705,0.5408726,3955.1,3954.3,3.0]
[1734323679328,0.5408726,3955.1,3954.4,3.0]
[1734323680157,0.5408726,3955.1,3954.1,0.8329]
[1734323680360,0.5408726,3955.1,3954.1,1.10771273]
[1734323680559,0.5408726,3955.1,3954.3,3.0]
[1734323681687,0.55,3954.9,3954.1,0.27481273]
[1734323681899,0.55,3954.9,3954.1,3.0]
[1734323682448,0.55,3954.9,3954.0,0.12319228]
[1734323682848,0.7819,3955.0,3954.0,2.65222228]
[1734323683038,0.7819,3955.0,3954.6,2.52867]
[1734323684237,0.55,3954.9,3954.6,2.52867]
[1734323684428,0.55,3954.9,3954.6,2.781537]
[1734323685566,0.55,3954.9,3954.7,2.52863]
[1734323685771,0.55,3954.9,3954.6,0.252867]
[1734323685975,0.55,3954.9,3954.5,2.52875]
[1734323686866,0.55,3954.9,3954.2,3.0]
[1734323687070,0.55,3954.9,3954.6,2.52869]
[1734323688343,0.55,3954.9,3954.7,2.52861]
[1734323691250,0.13154181,3955.2,3954.7,2.52861]
[1734323691251,0.55,3955.1,3954.7,2.52861]
[1734323691467,0.55,3955.1,3954.7,2.781471]
[1734323693943,0.55,3955.1,3954.7,0.252861]
[1734323694168,0.55,3955.1,3954.6,3.0]
[1734323694443,0.13154181,3955.2,3954.6,5.52869]
[1734323694444,0.55,3955.2,3954.6,5.52869]
[1734323696590,0.55,3955.2,3954.7,2.52862]
[1734323699191,0.55,3955.2,3954.5,2.52875]
[1734323699352,0.55,3955.2,3954.6,5.5287]
[1734323700289,0.55,3955.2,3954.6,3.0]
[1734323700521,0.55,3955.2,3954.6,3.7866]
[1734323700694,0.13152956,3955.7,3955.1,0.97871581]
[1734323700899,0.8247,3956.1,3955.7,3.0]
[1734323701207,1.92509301,3957.1,3955.8,0.3]
[1734323701208,0.13150512,3956.2,3955.8,0.3]
[1734323701352,0.13150512,3956.2,3955.7,2.52799]